fUST/lending_fUST_20240118
["ID","MTS","AMOUNT","RATE_DAILY","PERIOD"]
[311993171,1705534244210,-530.50360264,0.00022054,2]
[311993173,1705534244218,-325.91663912,0.00022054,2]
[311993175,1705534244227,-500.0,0.00022054,2]
[311993177,1705534244237,-417.16811537,0.00022054,2]
[311993179,1705534244246,-500.0,0.00022054,2]
[311993181,1705534244254,-500.0,0.00022054,2]
[311993183,1705534244266,-500.0,0.00022054,2]
[311993185,1705534244275,-500.0,0.00022054,2]
[311993187,1705534244284,-500.0,0.00022054,2]
[311993189,1705534244293,-500.0,0.00022054,2]
[311993191,1705534244302,-179.25954201,0.00022054,2]
[311993193,1705534244312,-500.0,0.00022054,2]
[311993195,1705534244321,-500.0,0.00022054,2]
[311993197,1705534244329,-500.0,0.00022054,2]
[311993199,1705534244338,-310.89199707,0.00022054,2]
[311993229,1705534244745,-462.6476,0.00018564,2]
[311993230,1705534244757,-1404.57123673,0.00018564,2]
[311993231,1705534244768,-499.52734062,0.00018564,2]
[311993232,1705534244778,-18489.99476396,0.00018564,2]
[311993234,1705534244787,-500.0,0.00021917,2]
[311993236,1705534244796,-189.10800293,0.00022054,2]
[311993238,1705534244806,-500.0,0.00022054,2]
[311993240,1705534244816,-500.0,0.00022054,2]
[311993242,1705534244825,-500.0,0.00022054,2]
[311993244,1705534244834,-500.0,0.00022054,2]
[311993246,1705534244843,-500.0,0.00022054,2]
[311993248,1705534244852,-500.0,0.00022054,2]
[311993250,1705534244861,-500.0,0.00022054,2]
[311993252,1705534244870,-500.0,0.00022054,2]
[311993254,1705534244879,-500.0,0.00022054,2]
[311993256,1705534244888,-566.02131718,0.00022054,2]
[311993258,1705534244897,-425.03867286,0.00022054,2]
[311993260,1705534244906,-500.0,0.00022054,2]
[311993262,1705534244915,-500.0,0.00022054,2]
[311993264,1705534244924,-532.33924089,0.00022054,2]
[311993266,1705534244934,-500.0,0.00022054,2]
[311993268,1705534244943,-500.0,0.00022054,2]
[311993270,1705534244952,-500.0,0.00022054,2]
[311993272,1705534244961,-646.32186224,0.00022054,2]
[311993274,1705534244970,-500.0,0.00022054,2]
[311993276,1705534244979,-500.0,0.00022054,2]
[311993278,1705534244988,-500.0,0.00022054,2]
[311993280,1705534244997,-500.0,0.00022054,2]
[311993282,1705534245006,-570.53074676,0.00022054,2]
[311993284,1705534245015,-500.0,0.00022054,2]
[311993286,1705534245024,-500.0,0.00022054,2]
[311993288,1705534245032,-511.65056995,0.00022054,2]
[311993290,1705534245041,-500.0,0.00022054,2]
[311993292,1705534245050,-500.0,0.00022054,2]
[311993294,1705534245060,-500.0,0.00022054,2]
[311993296,1705534245069,-364.85779853,0.00022054,2]
[311993298,1705534245078,-500.0,0.00022054,2]
[311993300,1705534245087,-500.0,0.00022054,2]
[311993302,1705534245095,-297.68122373,0.00022054,2]
[311993304,1705534245104,-500.0,0.00022054,2]
[311993306,1705534245113,-500.0,0.00022054,2]
[311993308,1705534245122,-500.0,0.00022054,2]
[311993309,1705534245131,-476.36050445,0.00022054,2]
[311993311,1705534245140,-173.39777827,0.00022054,2]
[311993313,1705534245149,-500.0,0.00022054,2]
[311993315,1705534245157,-507.60003843,0.00022054,2]
[311993317,1705534245166,-500.0,0.00022054,2]
[311993319,1705534245176,-459.20771366,0.00022054,2]
[311993321,1705534245185,-502.38159096,0.00022054,2]
[311993323,1705534245194,-500.0,0.00022054,2]
[311993325,1705534245203,-500.0,0.00022054,2]
[311993327,1705534245211,-500.0,0.00022054,2]
[311993329,1705534245222,-500.0,0.00022054,2]
[311993331,1705534245231,-500.0,0.00022054,2]
[311993333,1705534245239,-1125.02,0.00022054,2]
[311993335,1705534245249,-500.0,0.00022054,2]
[311993337,1705534245258,-500.0,0.00022054,2]
[311993339,1705534245267,-500.0,0.00022054,2]
[311993341,1705534245276,-1203.74,0.00022054,2]
[311993343,1705534245285,-500.0,0.00022054,2]
[311993345,1705534245294,-281.82591976,0.00022054,2]
[311993347,1705534245303,-500.0,0.00022054,2]
[311993349,1705534245312,-500.0,0.00022054,2]
[311993351,1705534245321,-500.0,0.00022054,2]
[311993353,1705534245330,-504.355808,0.00022054,2]
[311993355,1705534245339,-500.0,0.00022054,2]
[311993357,1705534245348,-500.0,0.00022054,2]
[311993359,1705534245357,-500.0,0.00022054,2]
[311993361,1705534245366,-500.0,0.00022054,2]
[311993363,1705534245375,-500.0,0.00022054,2]
[311993365,1705534245383,-500.0,0.00022054,2]
[311993366,1705534245392,-500.0,0.00022054,2]
[311993369,1705534245401,-500.0,0.00022054,2]
[311993370,1705534245410,-500.0,0.00022054,2]
[311993372,1705534245420,-500.0,0.00022054,2]
[311993374,1705534245429,-529.03796946,0.00022054,2]
[311993376,1705534245439,-513.23898,0.00022054,2]
[311993378,1705534245451,-500.0,0.00022054,2]
[311993380,1705534245460,-500.0,0.00022054,2]
[311993382,1705534245469,-500.0,0.00022054,2]
[311993384,1705534245478,-500.0,0.00022054,2]
[311993386,1705534245488,-620.27,0.00022054,2]
[311993388,1705534245497,-604.25270397,0.00022054,2]
[311993390,1705534245506,-500.0,0.00022054,2]
[311993393,1705534245515,-500.0,0.00022054,2]
[311993395,1705534245526,-500.0,0.00022054,2]
[311993398,1705534245535,-220.0,0.00022054,2]
[311993402,1705534245545,-505.69137092,0.00022054,2]
[311993405,1705534245554,-634.14,0.00022054,2]
[311993407,1705534245564,-500.0,0.00022054,2]
[311993417,1705534245638,-500.0,0.00022054,2]
[311993419,1705534245647,-166.95289881,0.00022054,2]
[311993422,1705534245657,-212.1102794,0.00022054,2]
[311993423,1705534245667,-500.0,0.00022054,2]
[311993426,1705534245677,-500.0,0.00022054,2]
[311993427,1705534245686,-500.0,0.00022054,2]
[311993429,1705534245695,-500.0,0.00022054,2]
[311993431,1705534245705,-526.36826856,0.00022054,2]
[311993433,1705534245714,-500.0,0.00022054,2]
[311993435,1705534245723,-500.0,0.00022054,2]
[311993437,1705534245733,-500.0,0.00022054,2]
[311993439,1705534245741,-616.56935062,0.00022054,2]
[311993441,1705534245750,-500.0,0.00022054,2]
[311993443,1705534245760,-500.0,0.00022054,2]
[311993445,1705534245769,-784.68,0.00022054,2]
[311993447,1705534245779,-500.0,0.00022054,2]
[311993449,1705534245788,-500.0,0.00022054,2]
[311993451,1705534245797,-500.0,0.00022054,2]
[311993453,1705534245807,-247.6604082,0.00022054,2]
[311993455,1705534245816,-500.0,0.00022054,2]
[311993457,1705534245825,-500.0,0.00022054,2]
[311993460,1705534245835,-500.0,0.00022054,2]
[311993462,1705534245844,-878.94,0.00022054,2]
[311993464,1705534245853,-500.0,0.00022054,2]
[311993465,1705534245862,-500.0,0.00022054,2]
[311993467,1705534245871,-515.20044947,0.00022054,2]
[311993469,1705534245880,-500.0,0.00022054,2]
[311993471,1705534245891,-500.0,0.00022054,2]
[311993474,1705534245900,-607.27,0.00022054,2]
[311993476,1705534245910,-500.0,0.00022054,2]
[311993478,1705534245921,-500.0,0.00022054,2]
[311993480,1705534245931,-504.47038678,0.00022054,2]
[311993482,1705534245940,-500.0,0.00022054,2]
[311993484,1705534245950,-502.42486477,0.00022054,2]
[311993486,1705534245959,-500.0,0.00022054,2]
[311993487,1705534245968,-10943.32,0.00022054,2]
[311993489,1705534245978,-500.0,0.00022054,2]
[311993492,1705534245988,-500.0,0.00022054,2]
[311993493,1705534246002,-1065.47,0.00022054,2]
[311993496,1705534246012,-500.0,0.00022054,2]
[311993498,1705534246022,-500.0,0.00022054,2]
[311993500,1705534246032,-500.0,0.00022054,2]
[311993501,1705534246042,-6259.87,0.00022054,2]
[311993503,1705534246052,-2686.89,0.00022054,2]
[311993506,1705534246061,-500.0,0.00022054,2]
[311993507,1705534246072,-500.0,0.00022054,2]
[311993509,1705534246082,-500.0,0.00022054,2]
[311993511,1705534246092,-715.47,0.00022054,2]
[311993513,1705534246100,-500.0,0.00022054,2]
[311993515,1705534246110,-500.0,0.00022054,2]
[311993517,1705534246120,-500.0,0.00022054,2]
[311993519,1705534246129,-500.0,0.00022054,2]
[311993521,1705534246138,-500.0,0.00022054,2]
[311993523,1705534246153,-500.0,0.00022054,2]
[311993526,1705534246162,-2981.3,0.00022054,2]
[311993527,1705534246170,-500.0,0.00022054,2]
[311993529,1705534246180,-500.0,0.00022054,2]
[311993531,1705534246189,-500.0,0.00022054,2]
[311993533,1705534246198,-3631.68,0.00022054,2]
[311993535,1705534246207,-500.0,0.00022054,2]
[311993537,1705534246216,-555.37210289,0.00022054,2]
[311993539,1705534246225,-500.0,0.00022054,2]
[311993541,1705534246234,-3402.95,0.00022054,2]
[311993544,1705534246243,-7971.75,0.00022054,2]
[311993545,1705534246252,-500.0,0.00022054,2]
[311993547,1705534246261,-283.46891981,0.00022054,2]
[311993549,1705534246270,-500.0,0.00022054,2]
[311993551,1705534246279,-606.78,0.00022054,2]
[311993553,1705534246289,-1253.84,0.00022054,2]
[311993555,1705534246298,-500.0,0.00022054,2]
[311993557,1705534246307,-931.69,0.00022054,2]
[311993560,1705534246316,-375.15408606,0.00022054,2]
[311993561,1705534246326,-500.0,0.00022054,2]
[311993564,1705534246336,-500.0,0.00022054,2]
[311993566,1705534246346,-500.0,0.00022054,2]
[311993568,1705534246355,-500.0,0.00022054,2]
[311993570,1705534246364,-500.0,0.00022054,2]
[311993572,1705534246373,-500.0,0.00022054,2]
[311993574,1705534246382,-500.0,0.00022054,2]
[311993576,1705534246391,-500.0,0.00022054,2]
[311993577,1705534246400,-501.93142578,0.00022054,2]
[311993579,1705534246409,-415.79701904,0.00022054,2]
[311993581,1705534246418,-500.0,0.00022054,2]
[311993583,1705534246428,-500.0,0.00022054,2]
[311993585,1705534246437,-500.0,0.00022054,2]
[311993587,1705534246452,-500.0,0.00022054,2]
[311993589,1705534246462,-500.0,0.00022054,2]
[311993591,1705534246471,-836.83,0.00022054,2]
[311993593,1705534246480,-500.0,0.00022054,2]
[311993595,1705534246490,-500.0,0.00022054,2]
[311993597,1705534246499,-987.33916096,0.00022054,2]
[311993599,1705534246508,-500.0,0.00022054,2]
[311993601,1705534246517,-819.66,0.00022054,2]
[311993603,1705534246526,-500.0,0.00022054,2]
[311993605,1705534246537,-261.31076788,0.00022054,2]
[311993607,1705534246546,-500.0,0.00022054,2]
[311993609,1705534246555,-1474.42,0.00022054,2]
[311993611,1705534246564,-500.0,0.00022054,2]
[311993613,1705534246574,-500.0,0.00022054,2]
[311993615,1705534246582,-500.0,0.00022054,2]
[311993617,1705534246591,-500.0,0.00022054,2]
[311993619,1705534246601,-500.0,0.00022054,2]
[311993621,1705534246610,-500.91038738,0.00022054,2]
[311993623,1705534246618,-500.0,0.00022054,2]
[311993625,1705534246628,-500.0,0.00022054,2]
[311993627,1705534246637,-500.0,0.00022054,2]
[311993629,1705534246646,-500.0,0.00022054,2]
[311993631,1705534246655,-503.66264929,0.00022054,2]
[311993633,1705534246664,-500.0,0.00022054,2]
[311993635,1705534246675,-531.86243701,0.00022054,2]
[311993637,1705534246685,-500.0,0.00022054,2]
[311993639,1705534246694,-500.0,0.00022054,2]
[311993641,1705534246703,-500.0,0.00022054,2]
[311993643,1705534246712,-500.0,0.00022054,2]
[311993645,1705534246721,-1089.45,0.00022054,2]
[311993647,1705534246730,-500.0,0.00022054,2]
[311993649,1705534246739,-500.0,0.00022054,2]
[311993651,1705534246748,-500.0,0.00022054,2]
[311993653,1705534246757,-500.0,0.00022054,2]
[311993655,1705534246766,-501.6604041,0.00022054,2]
[311993657,1705534246775,-500.0,0.00022054,2]
[311993659,1705534246784,-500.0,0.00022054,2]
[311993661,1705534246793,-500.0,0.00022054,2]
[311993663,1705534246803,-500.0,0.00022054,2]
[311993665,1705534246813,-500.0,0.00022054,2]
[311993667,1705534246822,-1412.26,0.00022054,2]
[311993669,1705534246831,-500.0,0.00022054,2]
[311993671,1705534246841,-500.0,0.0002219,2]
[311993673,1705534246851,-500.0,0.0002219,2]
[311993675,1705534246860,-272.006336,0.00022191,2]
[311993677,1705534246869,-272.006336,0.00022191,2]
[311993678,1705534246878,-850.996124,0.00022191,2]
[311993680,1705534246887,-850.996124,0.00022191,2]
[311993682,1705534246897,-496.66696298,0.00022191,2]
[311993684,1705534246907,-500.0,0.00022191,2]
[311993686,1705534246916,-500.0,0.00022191,2]
[311993688,1705534246926,-504.26525817,0.00022191,2]
[311993690,1705534246935,-500.0,0.00022191,2]
[311993698,1705534247002,-500.0,0.00022191,2]
[311993700,1705534247011,-500.0,0.00022191,2]
[311993702,1705534247020,-500.0,0.00022191,2]
[311993704,1705534247031,-500.0,0.00022191,2]
[311993706,1705534247040,-500.0,0.00022191,2]
[311993708,1705534247049,-500.0,0.00022191,2]
[311993710,1705534247058,-500.0,0.00022191,2]
[311993712,1705534247067,-168.73604106,0.00022191,2]
[311993714,1705534247076,-500.0,0.00022191,2]
[311993716,1705534247085,-500.0,0.00022191,2]
[311993718,1705534247095,-500.0,0.00022191,2]
[311993720,1705534247104,-500.0,0.00022191,2]
[311993722,1705534247113,-407.13346169,0.00022191,2]
[311993724,1705534247122,-500.0,0.00022191,2]
[311993726,1705534247131,-500.0,0.00022191,2]
[311993727,1705534247140,-500.0,0.00022191,2]
[311993728,1705534247149,-500.0,0.00022191,2]
[311993729,1705534247157,-500.0,0.00022191,2]
[311993730,1705534247166,-500.0,0.00022191,2]
[311993731,1705534247175,-500.0,0.00022191,2]
[311993733,1705534247185,-500.0,0.00022191,2]
[311993735,1705534247194,-500.0,0.00022191,2]
[311993737,1705534247203,-500.0,0.00022191,2]
[311993739,1705534247213,-500.0,0.00022191,2]
[311993741,1705534247222,-500.0,0.00022191,2]
[311993743,1705534247232,-500.0,0.00022191,2]
[311993745,1705534247241,-500.0,0.00022191,2]
[311993747,1705534247250,-500.0,0.00022191,2]
[311993749,1705534247259,-504.91326145,0.00022191,2]
[311993751,1705534247268,-500.0,0.00022191,2]
[311993753,1705534247277,-500.0,0.00022191,2]
[311993755,1705534247286,-500.0,0.00022191,2]
[311993757,1705534247296,-1125.02,0.00022191,2]
[311993759,1705534247306,-500.0,0.00022191,2]
[311993761,1705534247315,-500.0,0.00022191,2]
[311993763,1705534247324,-1203.74,0.00022191,2]
[311993765,1705534247333,-500.0,0.00022191,2]
[311993767,1705534247343,-500.0,0.00022191,2]
[311993769,1705534247352,-500.0,0.00022191,2]
[311993771,1705534247362,-500.0,0.00022191,2]
[311993773,1705534247372,-500.0,0.00022191,2]
[311993774,1705534247383,-500.0,0.00022191,2]
[311993777,1705534247393,-500.0,0.00022191,2]
[311993779,1705534247402,-500.0,0.00022191,2]
[311993780,1705534247412,-239.57751721,0.00022191,2]
[311993782,1705534247421,-500.0,0.00022191,2]
[311993784,1705534247432,-500.0,0.00022191,2]
[311993787,1705534247445,-500.0,0.00022191,2]
[311993789,1705534247455,-500.0,0.00022191,2]
[311993790,1705534247463,-620.27,0.00022191,2]
[311993793,1705534247473,-500.0,0.00022191,2]
[311993795,1705534247482,-500.0,0.00022191,2]
[311993797,1705534247491,-220.0,0.00022191,2]
[311993799,1705534247500,-634.14,0.00022191,2]
[311993801,1705534247510,-419.76471444,0.00022191,2]
[311993803,1705534247520,-500.0,0.00022191,2]
[311993804,1705534247531,-500.0,0.00022191,2]
[311993807,1705534247541,-500.0,0.00022191,2]
[311993809,1705534247550,-500.0,0.00022191,2]
[311993811,1705534247560,-332.96932048,0.00022191,2]
[311993813,1705534247568,-500.0,0.00022191,2]
[311993815,1705534247578,-508.34806306,0.00022191,2]
[311993817,1705534247588,-500.0,0.00022191,2]
[311993819,1705534247597,-784.68,0.00022191,2]
[311993821,1705534247606,-261.51843576,0.00022191,2]
[311993823,1705534247616,-500.0,0.00022191,2]
[311993825,1705534247624,-500.0,0.00022191,2]
[311993827,1705534247634,-437.89597331,0.00022191,2]
[311993828,1705534247642,-878.94,0.00022191,2]
[311993831,1705534247652,-500.0,0.00022191,2]
[311993832,1705534247662,-500.0,0.00022191,2]
[311993835,1705534247672,-500.0,0.00022191,2]
[311993836,1705534247682,-607.27,0.00022191,2]
[311993839,1705534247693,-500.0,0.00022191,2]
[311993841,1705534247704,-10943.32,0.00022191,2]
[311993842,1705534247714,-500.0,0.00022191,2]
[311993844,1705534247725,-500.0,0.00022191,2]
[311993846,1705534247734,-1065.47,0.00022191,2]
[311993848,1705534247743,-500.0,0.00022191,2]
[311993850,1705534247752,-500.0,0.00022191,2]
[311993852,1705534247761,-6259.87,0.00022191,2]
[311993854,1705534247770,-2686.89,0.00022191,2]
[311993856,1705534247780,-500.0,0.00022191,2]
[311993858,1705534247789,-500.0,0.00022191,2]
[311993860,1705534247798,-500.0,0.00022191,2]
[311993862,1705534247807,-715.47,0.00022191,2]
[311993864,1705534247816,-500.0,0.00022191,2]
[311993866,1705534247827,-500.0,0.00022191,2]
[311993868,1705534247836,-500.0,0.00022191,2]
[311993870,1705534247846,-500.0,0.00022191,2]
[311993872,1705534247855,-2981.3,0.00022191,2]
[311993874,1705534247864,-500.0,0.00022191,2]
[311993876,1705534247873,-3631.68,0.00022191,2]
[311993878,1705534247882,-500.0,0.00022191,2]
[311993880,1705534247891,-500.0,0.00022191,2]
[311993882,1705534247900,-3402.95,0.00022191,2]
[311993884,1705534247909,-7971.75,0.00022191,2]
[311993886,1705534247918,-500.0,0.00022191,2]
[311993888,1705534247927,-500.0,0.00022191,2]
[311993890,1705534247937,-606.78,0.00022191,2]
[311993892,1705534247946,-1253.84,0.00022191,2]
[311993894,1705534247956,-500.0,0.00022191,2]
[311993896,1705534247965,-931.69,0.00022191,2]
[311993898,1705534247974,-507.22407258,0.00022191,2]
[311993900,1705534247983,-500.0,0.00022191,2]
[311993902,1705534247993,-500.0,0.00022191,2]
[311993904,1705534248001,-500.0,0.00022191,2]
[311993906,1705534248011,-500.0,0.00022191,2]
[311993908,1705534248020,-500.0,0.00022191,2]
[311993910,1705534248029,-500.0,0.00022191,2]
[311993912,1705534248037,-500.0,0.00022191,2]
[311993914,1705534248046,-836.83,0.00022191,2]
[311993916,1705534248056,-515.61152056,0.00022191,2]
[311993918,1705534248065,-819.66,0.00022191,2]
[311993920,1705534248074,-500.0,0.00022191,2]
[311993922,1705534248083,-500.0,0.00022191,2]
[311993924,1705534248092,-1474.42,0.00022191,2]
[311993926,1705534248103,-500.0,0.00022191,2]
[311993928,1705534248112,-500.0,0.00022191,2]
[311993930,1705534248121,-500.0,0.00022191,2]
[311993932,1705534248131,-500.0,0.00022191,2]
[311993934,1705534248140,-500.0,0.00022191,2]
[311993936,1705534248149,-500.0,0.00022191,2]
[311993938,1705534248157,-500.0,0.00022191,2]
[311993940,1705534248166,-500.0,0.00022191,2]
[311993942,1705534248176,-506.0700257,0.00022191,2]
[311993944,1705534248185,-500.0,0.00022191,2]
[311993952,1705534248248,-500.0,0.00022191,2]
[311993954,1705534248258,-500.0,0.00022191,2]
[311993956,1705534248268,-500.0,0.00022191,2]
[311993958,1705534248277,-1089.45,0.00022191,2]
[311993960,1705534248287,-503.9317986,0.00022191,2]
[311993962,1705534248297,-500.0,0.00022191,2]
[311993964,1705534248307,-510.11734616,0.00022191,2]
[311993967,1705534248318,-500.0,0.00022191,2]
[311993968,1705534248328,-500.0,0.00022191,2]
[311993971,1705534248338,-367.46186729,0.00022191,2]
[311993973,1705534248348,-500.0,0.00022191,2]
[311993974,1705534248357,-1412.26,0.00022191,2]
[311993977,1705534248367,-500.0,0.00022327,2]
[311993979,1705534248376,-850.996124,0.00022328,2]
[311993981,1705534248385,-850.996124,0.00022328,2]
[311993983,1705534248394,-500.0,0.00022328,2]
[311993985,1705534248403,-500.0,0.00022328,2]
[311993987,1705534248412,-500.0,0.00022328,2]
[311993988,1705534248422,-500.0,0.00022328,2]
[311993990,1705534248433,-606.06001327,0.00022328,2]
[311993992,1705534248446,-500.0,0.00022328,2]
[311993994,1705534248456,-500.0,0.00022328,2]
[311993996,1705534248465,-500.0,0.00022328,2]
[311993999,1705534248475,-500.0,0.00022328,2]
[311994001,1705534248485,-490.03723511,0.00022328,2]
[311994003,1705534248494,-500.0,0.00022328,2]
[311994005,1705534248503,-500.0,0.00022328,2]
[311994007,1705534248512,-500.0,0.00022328,2]
[311994009,1705534248523,-233.05610756,0.00022328,2]
[311994011,1705534248532,-500.0,0.00022328,2]
[311994013,1705534248541,-500.0,0.00022328,2]
[311994015,1705534248550,-500.0,0.00022328,2]
[311994017,1705534248558,-539.85514961,0.00022328,2]
[311994019,1705534248567,-500.0,0.00022328,2]
[311994021,1705534248576,-500.0,0.00022328,2]
[311994023,1705534248586,-500.0,0.00022328,2]
[311994025,1705534248595,-1125.02,0.00022328,2]
[311994027,1705534248604,-563.67718812,0.00022328,2]
[311994029,1705534248613,-1203.74,0.00022328,2]
[311994031,1705534248622,-500.0,0.00022328,2]
[311994033,1705534248632,-500.0,0.00022328,2]
[311994035,1705534248641,-500.0,0.00022328,2]
[311994037,1705534248651,-500.0,0.00022328,2]
[311994039,1705534248660,-500.0,0.00022328,2]
[311994041,1705534248669,-500.0,0.00022328,2]
[311994043,1705534248679,-500.0,0.00022328,2]
[311994045,1705534248689,-500.0,0.00022328,2]
[311994047,1705534248698,-620.27,0.00022328,2]
[311994049,1705534248707,-500.0,0.00022328,2]
[311994051,1705534248716,-634.14,0.00022328,2]
[311994053,1705534248726,-501.41975854,0.00022328,2]
[311994055,1705534248735,-500.0,0.00022328,2]
[311994057,1705534248744,-500.0,0.00022328,2]
[311994059,1705534248754,-500.0,0.00022328,2]
[311994061,1705534248763,-784.68,0.00022328,2]
[311994063,1705534248772,-373.15444107,0.00022328,2]
[311994065,1705534248781,-500.0,0.00022328,2]
[311994067,1705534248790,-878.94,0.00022328,2]
[311994069,1705534248799,-500.0,0.00022328,2]
[311994071,1705534248807,-500.0,0.00022328,2]
[311994073,1705534248817,-500.0,0.00022328,2]
[311994074,1705534248826,-607.27,0.00022328,2]
[311994076,1705534248835,-643.11957261,0.00022328,2]
[311994078,1705534248844,-10943.32,0.00022328,2]
[311994080,1705534248853,-500.0,0.00022328,2]
[311994082,1705534248862,-1065.47,0.00022328,2]
[311994084,1705534248871,-592.28485347,0.00022328,2]
[311994086,1705534248880,-500.0,0.00022328,2]
[311994088,1705534248889,-6259.87,0.00022328,2]
[311994090,1705534248898,-2686.89,0.00022328,2]
[311994092,1705534248908,-500.0,0.00022328,2]
[311994094,1705534248916,-500.0,0.00022328,2]
[311994096,1705534248926,-715.47,0.00022328,2]
[311994098,1705534248935,-500.0,0.00022328,2]
[311994100,1705534248944,-500.0,0.00022328,2]
[311994102,1705534248954,-2981.3,0.00022328,2]
[311994104,1705534248963,-500.0,0.00022328,2]
[311994106,1705534248972,-3631.68,0.00022328,2]
[311994108,1705534248981,-3402.95,0.00022328,2]
[311994110,1705534248991,-7971.75,0.00022328,2]
[311994112,1705534248999,-500.0,0.00022328,2]
[311994114,1705534249009,-606.78,0.00022328,2]
[311994116,1705534249018,-1253.84,0.00022328,2]
[311994118,1705534249027,-500.0,0.00022328,2]
[311994120,1705534249035,-931.69,0.00022328,2]
[311994122,1705534249045,-500.0,0.00022328,2]
[311994124,1705534249054,-500.0,0.00022328,2]
[311994126,1705534249062,-500.0,0.00022328,2]
[311994128,1705534249072,-454.48626207,0.00022328,2]
[311994130,1705534249082,-500.0,0.00022328,2]
[311994132,1705534249091,-836.83,0.00022328,2]
[311994134,1705534249100,-819.66,0.00022328,2]
[311994136,1705534249110,-465.15047462,0.00022328,2]
[311994138,1705534249119,-421.05321468,0.00022328,2]
[311994140,1705534249128,-1474.42,0.00022328,2]
[311994142,1705534249138,-500.0,0.00022328,2]
[311994144,1705534249148,-500.0,0.00022328,2]
[311994146,1705534249157,-500.0,0.00022328,2]
[311994148,1705534249167,-500.0,0.00022328,2]
[311994150,1705534249176,-500.0,0.00022328,2]
[311994152,1705534249185,-500.0,0.00022328,2]
[311994154,1705534249194,-500.0,0.00022328,2]
[311994156,1705534249203,-500.0,0.00022328,2]
[311994158,1705534249214,-500.0,0.00022328,2]
[311994160,1705534249224,-500.0,0.00022328,2]
[311994162,1705534249233,-500.0,0.00022328,2]
[311994164,1705534249243,-1089.45,0.00022328,2]
[311994166,1705534249251,-500.0,0.00022328,2]
[311994168,1705534249260,-500.0,0.00022328,2]
[311994170,1705534249269,-500.0,0.00022328,2]
[311994172,1705534249278,-500.0,0.00022328,2]
[311994174,1705534249288,-1412.26,0.00022328,2]
[311994177,1705534249298,-166.666666,0.00022431,2]
[311994179,1705534249308,-280.0,0.00022462,7]
[311994181,1705534249317,-500.0,0.00022464,2]
[311994183,1705534249328,-500.0,0.00022464,2]
[311994185,1705534249337,-272.006336,0.00022465,2]
[311994193,1705534249399,-272.006336,0.00022465,2]
[311994195,1705534249409,-500.0,0.00022465,2]
[311994197,1705534249418,-500.0,0.00022465,2]
[311994199,1705534249428,-500.0,0.00022465,2]
[311994201,1705534249437,-476.45077995,0.00022465,2]
[311994202,1705534249450,-457.80157163,0.00022465,2]
[311994205,1705534249460,-500.0,0.00022465,2]
[311994206,1705534249470,-500.0,0.00022465,2]
[311994209,1705534249479,-500.0,0.00022465,2]
[311994210,1705534249489,-500.0,0.00022465,2]
[311994212,1705534249498,-500.0,0.00022465,2]
[311994214,1705534249507,-1125.02,0.00022465,2]
[311994216,1705534249516,-1203.74,0.00022465,2]